bitfinex-derivatives/quotes_BTCF0:USTF0_20250827
["timestamp","ask_amount","ask_price","bid_price","bid_amount"]
[1756334201168,0.0705753,111410.0,111400.0,2.0441018]
[1756334201371,0.0705753,111410.0,111400.0,2.1338552]
[1756334201969,0.0445153,111410.0,111400.0,2.3478611]
[1756334202379,0.0445153,111410.0,111400.0,2.1129352]
[1756334203577,0.0445153,111410.0,111400.0,2.1169352]
[1756334205470,0.0445153,111410.0,111400.0,2.16178179]
[1756334205778,0.0445153,111410.0,111400.0,2.1169352]
[1756334206482,0.0445153,111410.0,111400.0,2.3518611]
[1756334207577,0.0445153,111410.0,111400.0,2.39563308]
[1756334209185,0.1197927,111420.0,111410.0,0.0897454]
[1756334209479,0.1197927,111420.0,111410.0,0.9405122]
[1756334209480,0.1195927,111420.0,111410.0,0.9405122]
[1756334209975,0.1195927,111420.0,111410.0,1.7795522]
[1756334210378,0.1195927,111420.0,111410.0,1.7805522]
[1756334210882,0.1195927,111420.0,111410.0,0.9415122]
[1756334211074,0.1195927,111420.0,111410.0,1.7805122]
[1756334211570,0.1195927,111420.0,111410.0,1.7815122]
[1756334214284,0.1195927,111420.0,111410.0,1.7814322]
[1756334214484,0.1815427,111420.0,111410.0,0.382915]
[1756334214684,0.2465027,111420.0,111410.0,1.4567209]
[1756334218585,0.2465027,111420.0,111410.0,1.5464661]
[1756334218787,0.2139927,111420.0,111410.0,1.5464661]
[1756334219487,0.2139927,111420.0,111410.0,0.7075861]
[1756334219693,0.2139927,111420.0,111410.0,1.5463861]
[1756334219894,0.2139927,111420.0,111410.0,1.4566009]
[1756334220098,0.2457427,111420.0,111410.0,1.4566009]
[1756334220483,0.2452627,111420.0,111410.0,0.382915]
[1756334220792,0.4801886,111420.0,111410.0,1.4566009]
[1756334221395,0.4801886,111420.0,111410.0,1.5406609]
[1756334221396,0.28030571,111420.0,111410.0,1.5406609]
[1756334221898,0.37004841,111420.0,111410.0,1.5406609]
[1756334222198,0.37004841,111420.0,111410.0,1.5396609]
[1756334222703,0.0897427,111420.0,111410.0,1.5396609]
[1756334222884,0.0897427,111420.0,111410.0,1.6294062]
[1756334223203,0.4211886,111420.0,111410.0,1.6020809]
[1756334223497,0.4804286,111420.0,111410.0,1.6010809]
[1756334223999,0.2455027,111420.0,111410.0,1.6030809]
[1756334224698,0.2455027,111420.0,111410.0,1.6020809]
[1756334225296,0.2455027,111420.0,111410.0,1.6030809]
[1756334225695,0.2455027,111420.0,111410.0,1.6020809]
[1756334226193,0.2137527,111420.0,111410.0,1.6020809]
[1756334226605,0.0897427,111420.0,111410.0,1.6928262]
[1756334227101,0.0897427,111420.0,111410.0,1.9277521]
[1756334232798,0.1492027,111420.0,111410.0,1.9277521]
[1756334233102,0.0897427,111420.0,111410.0,1.4579003]
[1756334233301,0.0897427,111420.0,111410.0,1.9277521]
[1756334234691,0.0897427,111420.0,111410.0,1.0890721]
[1756334234895,0.1172327,111420.0,111410.0,1.8378068]
[1756334235493,0.1172327,111420.0,111410.0,1.6028809]
[1756334235692,0.1623127,111420.0,111410.0,1.6028809]
[1756334235902,0.1623127,111420.0,111410.0,1.6926262]
[1756334238012,0.1623127,111420.0,111410.0,0.8541462]
[1756334238211,0.1623127,111420.0,111410.0,1.6925462]
[1756334238212,0.2260327,111420.0,111410.0,1.6925462]
[1756334240607,0.2260327,111420.0,111410.0,1.6915462]
[1756334240910,0.1942827,111420.0,111410.0,1.6925462]
[1756334241113,0.1623127,111420.0,111410.0,1.6925462]
[1756334241410,0.1348227,111420.0,111410.0,1.9274721]
[1756334241811,0.1942827,111420.0,111410.0,1.9274721]
[1756334242413,0.1942827,111420.0,111410.0,1.6915462]
[1756334242605,0.1942827,111420.0,111410.0,1.6925462]
[1756334242805,0.1623127,111420.0,111410.0,1.6925462]
[1756334243113,0.1348227,111420.0,111410.0,1.6925462]
[1756334244117,0.1348227,111420.0,111410.0,0.8541462]
[1756334244413,0.1348227,111420.0,111410.0,1.6923862]
[1756334245000,0.1348227,111420.0,111410.0,1.6026409]
[1756334245001,0.2455027,111420.0,111410.0,1.6026409]
[1756334246918,0.2455027,111420.0,111410.0,0.7644009]
[1756334247216,0.2455027,111420.0,111410.0,1.6026409]
[1756334248221,0.2455027,111420.0,111410.0,0.7644009]
[1756334248517,0.2455027,111420.0,111410.0,1.6026009]
[1756334249119,0.2455027,111420.0,111410.0,1.6025609]
[1756334249712,0.2137527,111420.0,111410.0,1.6025609]
[1756334250614,0.4983727,111420.0,111410.0,0.529475]
[1756334250825,0.7332986,111420.0,111410.0,1.6025209]
[1756334251618,0.64908436,111420.0,111410.0,1.6025209]
[1756334251821,0.64908436,111420.0,111410.0,1.6005209]
[1756334253717,0.67718436,111420.0,111410.0,1.6005209]
[1756334254521,0.71977436,111420.0,111410.0,0.7624009]
[1756334254823,0.45674846,111420.0,111410.0,1.365515]
[1756334255021,0.45674846,111420.0,111410.0,1.6004409]
[1756334255022,0.69167436,111420.0,111410.0,1.6004409]
[1756334255922,0.3823327,111420.0,111410.0,1.6004409]
[1756334256421,0.4150527,111420.0,111410.0,1.6004409]
[1756334257124,0.4489227,111420.0,111410.0,1.6004409]
[1756334257320,0.3397427,111420.0,111410.0,1.6004409]
[1756334257520,0.3397427,111420.0,111410.0,1.365515]
[1756334257720,0.4489227,111420.0,111410.0,1.6003609]
[1756334258412,0.4489227,111420.0,111410.0,1.6013609]
[1756334258925,0.4489227,111420.0,111410.0,1.6023609]
[1756334259521,0.4489227,111420.0,111410.0,1.6003609]
[1756334259724,0.3606627,111420.0,111410.0,1.6003609]
[1756334259927,0.3933827,111420.0,111410.0,1.6003609]
[1756334260222,0.6621786,111420.0,111410.0,1.6003609]
[1756334260919,0.4683227,111420.0,111410.0,1.365355]
[1756334261218,0.7032486,111420.0,111410.0,1.6012809]
[1756334261422,0.7313486,111420.0,111410.0,1.6012809]
[1756334261625,0.53214087,111420.0,111410.0,1.6012809]
[1756334261829,0.53214087,111420.0,111410.0,1.6022809]
[1756334262124,0.53214087,111420.0,111410.0,1.6012809]
[1756334262522,0.49966287,111420.0,111410.0,0.96260863]
[1756334262719,0.49966287,111420.0,111410.0,1.81115863]
[1756334262920,0.49966287,111420.0,111410.0,1.81015863]
[1756334263117,0.23663697,111420.0,111410.0,1.81015863]
[1756334263318,0.15064697,111420.0,111410.0,1.81015863]
[1756334263820,0.18336697,111420.0,111410.0,1.81015863]
[1756334264224,0.41829287,111420.0,111410.0,1.81015863]
[1756334264525,0.45216287,111420.0,111410.0,1.81015863]
[1756334265422,0.18336697,111420.0,111410.0,1.81015863]
[1756334265621,0.45216287,111420.0,111410.0,1.81015863]
[1756334267629,0.21723697,111420.0,111410.0,1.57523273]
[1756334267928,0.45216287,111420.0,111410.0,1.81015863]
[1756334270532,0.38557287,111420.0,111410.0,1.81015863]
[1756334271233,0.41829287,111420.0,111410.0,1.81015863]
[1756334271937,0.41829287,111420.0,111410.0,1.81115863]
[1756334272235,0.41829287,111420.0,111410.0,1.81215863]
[1756334273334,0.41829287,111420.0,111410.0,1.6129509]
[1756334274432,0.45216287,111420.0,111410.0,1.6129509]
[1756334274936,0.45216287,111420.0,111410.0,1.6119509]
[1756334275138,0.45216287,111420.0,111410.0,1.6109509]
[1756334276338,0.41829287,111420.0,111410.0,1.6109509]
[1756334276638,0.45216287,111420.0,111410.0,1.376025]
[1756334276941,0.45216287,111420.0,111410.0,1.6109509]
[1756334277939,0.47156287,111420.0,111410.0,1.6107109]
[1756334280239,0.23663697,111420.0,111410.0,1.6107109]
[1756334280628,0.47156287,111420.0,111410.0,1.6107109]
[1756334280832,0.47156287,111420.0,111410.0,1.7004557]
[1756334281042,0.38557287,111420.0,111410.0,1.7004557]
[1756334281639,0.42022287,111420.0,111410.0,1.7004557]
[1756334281840,0.45433287,111420.0,111410.0,1.375785]
[1756334282038,0.47396287,111420.0,111410.0,0.7731109]
[1756334282239,0.47396287,111420.0,111410.0,1.6105909]
[1756334283342,0.47396287,111420.0,111410.0,1.7003357]
[1756334284245,0.45433287,111420.0,111410.0,1.7003357]
[1756334285344,0.34298287,111420.0,111410.0,1.7003357]
[1756334287141,0.10805697,111420.0,111410.0,1.7003357]
[1756334287932,0.10805697,111420.0,111410.0,1.89954343]
[1756334288337,0.10805697,111420.0,111410.0,2.38446933]
[1756334288745,0.10805697,111420.0,111410.0,2.14954343]
[1756334289246,0.10805697,111420.0,111410.0,2.15054343]
[1756334289642,0.10805697,111420.0,111410.0,2.38546933]
[1756334290040,0.10805697,111420.0,111410.0,2.38646933]
[1756334290746,0.10805697,111420.0,111410.0,2.38546933]
[1756334290942,0.10805697,111420.0,111410.0,2.38646933]
[1756334291139,0.10805697,111420.0,111410.0,1.31406343]
[1756334291345,0.10805697,111420.0,111410.0,2.15138343]
[1756334292547,0.10805697,111420.0,111410.0,2.15134343]
[1756334293539,0.10805697,111420.0,111410.0,1.07913753]
[1756334293851,0.10805697,111420.0,111410.0,2.15130343]
[1756334294551,0.0897427,111420.0,111410.0,2.15130343]
[1756334300157,0.0897427,111420.0,111410.0,1.91637753]
[1756334300356,0.0897427,111420.0,111410.0,2.15130343]
[1756334301061,0.0897427,111420.0,111410.0,2.15114343]
[1756334302754,0.0897427,111420.0,111410.0,1.91621753]
[1756334302960,0.0897427,111420.0,111410.0,2.15114343]
[1756334306858,0.0897427,111420.0,111410.0,2.15011343]
[1756334307160,0.0897427,111420.0,111410.0,1.91518753]
[1756334308260,0.0897427,111420.0,111410.0,1.91514753]
[1756334308554,0.1229427,111420.0,111410.0,1.91514753]
[1756334308762,0.0897427,111420.0,111410.0,1.91514753]
[1756334309261,0.0897427,111420.0,111410.0,1.82540273]
[1756334309652,0.0897427,111420.0,111410.0,1.22340863]
[1756334309852,0.0897427,111420.0,111410.0,2.06024863]
[1756334311365,0.0897427,111420.0,111410.0,1.22340863]
[1756334311568,0.0897427,111420.0,111410.0,2.06024863]
[1756334311867,0.42265502,111420.0,111410.0,2.06020863]
[1756334312052,0.45585502,111420.0,111410.0,2.06020863]
[1756334313173,0.45585502,111420.0,111410.0,2.05920863]
[1756334313363,0.45585502,111420.0,111410.0,2.05820863]
[1756334313766,0.45585502,111420.0,111410.0,1.22140863]
[1756334313967,0.45585502,111420.0,111410.0,2.05812863]
[1756334314371,0.47561502,111420.0,111410.0,0.97140863]
[1756334314667,0.47561502,111420.0,111410.0,1.80812863]
[1756334315456,0.34310502,111420.0,111410.0,1.80812863]
[1756334315661,0.10817912,111420.0,111410.0,1.89787343]
[1756334315860,0.38444133,111430.0,111420.0,0.1565]
[1756334316066,0.38444133,111430.0,111420.0,0.7522259]
[1756334316770,0.49393013,111430.0,111420.0,0.7522259]
[1756334317160,0.17287423,111430.0,111420.0,0.95143363]
[1756334317361,0.40780013,111430.0,111420.0,0.95143363]
[1756334317969,0.44100013,111430.0,111420.0,0.95143363]
[1756334318167,0.40780013,111430.0,111420.0,0.95143363]
[1756334318360,0.40780013,111430.0,111420.0,1.18635953]
[1756334318566,0.47870409,111430.0,111420.0,1.18635953]
[1756334319263,0.47870409,111430.0,111420.0,0.95143363]
[1756334319465,0.24377819,111430.0,111420.0,0.95143363]
[1756334319663,0.19804819,111430.0,111420.0,1.18635953]
[1756334321268,0.19804819,111430.0,111420.0,1.55306773]
[1756334321470,0.26441819,111430.0,111420.0,2.02291953]
[1756334321774,0.49934409,111430.0,111420.0,2.02291953]
[1756334321975,0.26441819,111430.0,111420.0,2.02291953]
[1756334322268,0.49934409,111430.0,111420.0,2.02291953]
[1756334322467,0.46617409,111430.0,111420.0,2.02291953]
[1756334322663,0.43297409,111430.0,111420.0,2.02291953]
[1756334322869,0.19804819,111430.0,111420.0,2.02291953]
[1756334323676,0.26441819,111430.0,111420.0,1.55306773]
[1756334323975,0.19804819,111430.0,111420.0,2.02291953]
[1756334324171,0.23124819,111430.0,111420.0,2.02291953]
[1756334325173,0.54507409,111430.0,111420.0,2.02279953]
[1756334325562,0.24377819,111430.0,111420.0,2.02279953]
[1756334326370,0.27697819,111430.0,111420.0,2.02279953]
[1756334326672,0.27697819,111430.0,111420.0,1.55294773]
[1756334326976,0.27697819,111430.0,111420.0,2.02279953]
[1756334327472,0.24377819,111430.0,111420.0,2.02279953]
[1756334328270,0.27697819,111430.0,111420.0,2.02279953]
[1756334328778,0.24377819,111430.0,111420.0,2.02279953]
[1756334329575,0.24377819,111430.0,111420.0,1.78787363]
[1756334329780,0.31014819,111430.0,111420.0,2.02267953]
[1756334329969,0.27697819,111430.0,111420.0,2.04276045]
[1756334331280,0.27697819,111430.0,111420.0,1.20644045]
[1756334331479,0.27697819,111430.0,111420.0,2.04276045]
[1756334331781,0.54507409,111430.0,111420.0,2.04272045]
[1756334332375,0.56483409,111430.0,111420.0,1.80775455]
[1756334333090,0.56483409,111430.0,111420.0,1.60854682]
[1756334335982,0.59280409,111430.0,111420.0,0.73658865]
[1756334336177,0.59280409,111430.0,111420.0,1.80771455]
[1756334337386,0.59480409,111430.0,111420.0,1.80771455]
[1756334337589,0.56683409,111430.0,111420.0,1.80771455]
[1756334337883,0.56683409,111430.0,111420.0,1.80763455]
[1756334338084,0.56683409,111430.0,111420.0,0.97151455]
[1756334338285,0.56783409,111430.0,111420.0,1.80759455]
[1756334338882,0.56783409,111430.0,111420.0,1.57266865]
[1756334339081,0.59666409,111430.0,111420.0,1.80755455]
[1756334340281,0.59666409,111430.0,111420.0,0.97151455]
[1756334340482,0.59666409,111430.0,111420.0,1.80751455]
[1756334342988,0.56783409,111430.0,111420.0,1.80747455]
[1756334343198,0.62386621,111430.0,111420.0,1.80747455]
[1756334343590,0.38894031,111430.0,111420.0,1.80747455]
[1756334343791,0.48170409,111430.0,111420.0,1.80747455]
[1756334344090,0.51346409,111430.0,111420.0,1.80747455]
[1756334344791,0.54744409,111430.0,111420.0,1.80747455]
[1756334346089,0.51346409,111430.0,111420.0,1.80747455]
[1756334346292,0.54744409,111430.0,111420.0,1.80747455]
[1756334346791,0.59440638,111430.0,111420.0,1.80735455]
[1756334347091,0.56721409,111430.0,111420.0,1.80735455]
[1756334348788,0.56721409,111430.0,111420.0,0.97151455]
[1756334349087,0.59604409,111430.0,111420.0,1.80735455]
[1756334350390,0.56721409,111430.0,111420.0,1.80735455]
[1756334351296,0.33228819,111430.0,111420.0,1.80735455]
[1756334351597,0.56721409,111430.0,111420.0,1.80735455]
[1756334352098,0.59604409,111430.0,111420.0,1.80723455]
[1756334352796,0.59604409,111430.0,111420.0,1.80719455]
[1756334353196,0.56721409,111430.0,111420.0,1.80719455]
[1756334355598,0.59604409,111430.0,111420.0,0.73658865]
[1756334355797,0.59604409,111430.0,111420.0,1.80711455]
[1756334356098,0.59604409,111430.0,111420.0,1.57218865]
[1756334356492,0.59604409,111430.0,111420.0,1.80711455]
[1756334356692,0.56721409,111430.0,111420.0,1.80711455]
[1756334358098,0.59604409,111430.0,111420.0,1.21091865]
[1756334359096,0.61604409,111430.0,111420.0,1.21091865]
[1756334359500,0.64322627,111430.0,111420.0,1.21091865]
[1756334360094,0.61604409,111430.0,111420.0,1.21091865]
[1756334360601,0.61604409,111430.0,111420.0,1.21083865]
[1756334361205,0.64458833,111430.0,111420.0,1.21083865]
[1756334364601,0.64458833,111430.0,111420.0,0.37539865]
[1756334364806,0.64458833,111430.0,111420.0,1.21071865]
[1756334365811,0.62458833,111430.0,111420.0,1.21071865]
[1756334372019,0.59575833,111430.0,111420.0,1.21071865]
[1756334373417,0.59575833,111430.0,111420.0,0.37539865]
[1756334373621,0.66575833,111430.0,111420.0,1.21051865]
[1756334376023,0.46749716,111430.0,111420.0,1.21051865]
[1756334376317,0.55722596,111430.0,111420.0,1.21051865]
[1756334376919,0.48818399,111430.0,111420.0,0.34248865]
[1756334377224,1.71457989,111430.0,111420.0,0.02287]
[1756334378722,2.54953989,111430.0,111420.0,0.02287]
[1756334379018,2.6226474,111430.0,111420.0,0.02287]
[1756334379424,0.2452468,111420.0,111410.0,0.15439]
[1756334379620,1.45231707,111420.0,111410.0,0.35349773]
[1756334381324,1.45331707,111420.0,111410.0,0.35349773]
[1756334381624,1.46331707,111420.0,111410.0,0.35349773]
[1756334381820,1.46531707,111420.0,111410.0,0.35349773]
[1756334382229,1.12531707,111420.0,111410.0,0.35349773]
[1756334382620,1.12531707,111420.0,111410.0,1.18833773]
[1756334383016,1.12531707,111420.0,111410.0,0.35349773]
[1756334384630,0.65546527,111420.0,111410.0,0.35349773]
[1756334384830,1.12531707,111420.0,111410.0,0.35349773]
[1756334386135,1.12531707,111420.0,111410.0,0.37356135]
[1756334389829,1.45531707,111420.0,111410.0,0.31036135]
[1756334390133,1.45531707,111420.0,111410.0,0.34603135]
[1756334390723,1.45531707,111420.0,111410.0,0.31464135]
[1756334390929,1.45531707,111420.0,111410.0,0.34603135]
[1756334391127,1.69024297,111420.0,111410.0,0.24099135]
[1756334391327,1.69024297,111420.0,111410.0,0.20438095]
[1756334391532,1.45531707,111420.0,111410.0,0.20438095]
[1756334392834,1.69024297,111420.0,111410.0,0.20438095]
[1756334393042,1.45531707,111420.0,111410.0,0.20438095]
[1756334393237,1.69024297,111420.0,111410.0,0.02006362]
[1756334394339,1.69024297,111420.0,111410.0,0.04178362]
[1756334394541,1.69024297,111420.0,111410.0,0.02006362]
[1756334395731,2.28975707,111420.0,111410.0,0.14682362]
[1756334395932,1.45531707,111420.0,111410.0,0.17435362]
[1756334396240,1.42288897,111420.0,111410.0,0.17435362]
[1756334396640,2.25732897,111420.0,111410.0,0.17435362]
[1756334397733,1.94728897,111420.0,111410.0,0.17435362]
[1756334399542,1.11288897,111420.0,111410.0,0.17435362]
[1756334400236,1.09288897,111420.0,111410.0,0.17435362]
[1756334400443,1.12672707,111420.0,111410.0,0.35867095]
[1756334401648,0.16137527,111420.0,111410.0,1.20439685]
[1756334401847,0.39630117,111420.0,111410.0,1.20439685]
[1756334402343,0.16137527,111420.0,111410.0,1.29414165]
[1756334402544,0.39630117,111420.0,111410.0,1.20439685]
[1756334403345,0.39530117,111420.0,111410.0,1.20639685]
[1756334403942,0.39330117,111420.0,111410.0,1.20639685]
[1756334404142,0.39330117,111420.0,111410.0,1.20839685]
[1756334404340,0.53191117,111420.0,111410.0,0.97347095]
[1756334404538,0.53191117,111420.0,111410.0,2.04259685]
[1756334405346,0.53191117,111420.0,111410.0,2.04159685]
[1756334405848,0.53191117,111420.0,111410.0,2.03959685]
[1756334406239,0.53191117,111420.0,111410.0,1.80467095]
[1756334406442,0.53191117,111420.0,111410.0,2.03951685]
[1756334407249,0.53191117,111420.0,111410.0,0.97047095]
[1756334407445,0.53191117,111420.0,111410.0,2.03951685]
[1756334408436,0.53191117,111420.0,111410.0,1.20539685]
[1756334408941,0.53191117,111420.0,111410.0,2.03943685]
[1756334409142,0.53191117,111420.0,111410.0,0.97047095]
[1756334409442,0.76683707,111420.0,111410.0,2.03939685]
[1756334409643,0.76683707,111420.0,111410.0,1.55447095]
[1756334411049,0.78683707,111420.0,111410.0,0.72047095]
[1756334411348,0.59572399,111420.0,111410.0,1.55447095]
[1756334411851,0.68546079,111420.0,111410.0,1.55347095]
[1756334412250,0.68646079,111420.0,111410.0,1.55347095]
[1756334412948,0.71024079,111420.0,111410.0,0.71947095]
[1756334413146,0.73024079,111420.0,111410.0,1.19263095]
[1756334413346,0.73024079,111420.0,111410.0,0.35867095]
[1756334413551,0.79024079,111420.0,111410.0,1.16116095]
[1756334413850,0.78024079,111420.0,111410.0,1.19333095]
[1756334414155,1.07024079,111420.0,111410.0,1.19333095]
[1756334414653,0.79024079,111420.0,111410.0,1.19333095]
[1756334415247,0.71024079,111420.0,111410.0,1.19333095]
[1756334415445,0.79024079,111420.0,111410.0,1.19333095]
[1756334415646,0.79024079,111420.0,111410.0,1.14101733]
[1756334415647,0.71024079,111420.0,111410.0,1.14101733]
[1756334415846,1.06024079,111420.0,111410.0,1.17318733]
[1756334416547,0.71024079,111420.0,111410.0,1.17318733]
[1756334416742,0.79024079,111420.0,111410.0,1.17318733]
[1756334417446,0.71024079,111420.0,111410.0,0.33938733]
[1756334417655,0.71024079,111420.0,111410.0,1.17310733]
[1756334417842,0.2531268,111420.0,111410.0,0.33938733]
[1756334418046,0.7229786,111420.0,111410.0,1.17310733]
[1756334418246,0.7229786,111420.0,111410.0,1.53390733]
[1756334419257,0.7229786,111420.0,111410.0,0.70018733]
[1756334419951,0.7229786,111420.0,111410.0,1.53386733]
[1756334420554,0.7229786,111420.0,111410.0,0.70018733]
[1756334420755,0.7229786,111420.0,111410.0,1.53386733]
[1756334421056,0.7229786,111420.0,111410.0,1.53382733]
[1756334422758,0.3256627,111420.0,111410.0,2.01875323]
[1756334422954,0.0907368,111420.0,111410.0,2.01875323]
[1756334423150,0.3256627,111420.0,111410.0,2.10849803]
[1756334423346,0.0907368,111420.0,111410.0,2.10849803]
[1756334423550,0.3256627,111420.0,111410.0,2.10849803]
[1756334425953,0.0907368,111420.0,111410.0,2.10849803]
[1756334426154,0.3256627,111420.0,111410.0,2.10849803]
[1756334427956,0.3256627,111420.0,111410.0,2.01875323]
[1756334430858,0.3256627,111420.0,111410.0,2.10849803]
[1756334431264,0.0907368,111420.0,111410.0,2.10849803]
[1756334431456,0.3256627,111420.0,111410.0,2.10849803]
[1756334431762,0.0907368,111420.0,111410.0,1.9091066]
[1756334431962,0.0907368,111420.0,111410.0,1.6741807]
[1756334433254,0.0897368,111420.0,111410.0,1.6761807]
[1756334433653,0.0897368,111420.0,111410.0,1.6771807]
[1756334434665,0.07330751,111430.0,111420.0,0.1990768]
[1756334434866,0.07310751,111430.0,111420.0,1.37290172]
[1756334435063,0.4284092,111440.0,111430.0,0.1336887]
[1756334435269,0.4593951,111440.0,111430.0,1.64811473]
[1756334435566,0.4593951,111440.0,111430.0,1.83243206]
[1756334436170,0.4593951,111440.0,111430.0,1.59750616]
[1756334436366,0.4282092,111440.0,111430.0,1.83243206]
[1756334436768,0.50054929,111440.0,111430.0,1.83243206]
[1756334437070,0.50154929,111440.0,111430.0,1.83243206]
[1756334437568,0.54755734,111440.0,111430.0,1.83343206]
[1756334438470,0.54655734,111440.0,111430.0,1.83343206]
[1756334439962,0.56439324,111440.0,111430.0,1.83343206]
[1756334441164,0.07234009,111440.0,111430.0,2.31835796]
[1756334441472,0.0899184,111450.0,111440.0,0.1990607]
[1756334441661,0.13393102,111450.0,111440.0,1.21402983]
[1756334441971,0.0897184,111450.0,111440.0,1.21402983]
[1756334442571,1.5897184,111450.0,111440.0,1.46402983]
[1756334442772,1.501,111450.0,111440.0,1.46402983]
[1756334443167,1.5907126,111450.0,111440.0,1.46402983]
[1756334443477,1.5927126,111450.0,111440.0,2.14002769]
[1756334443970,1.5907126,111450.0,111440.0,2.14002769]
[1756334444573,1.5897126,111450.0,111440.0,2.14002769]
[1756334444772,1.66001526,111450.0,111440.0,2.14002769]
[1756334445164,1.66001526,111450.0,111440.0,1.30722769]
[1756334445371,1.66001526,111450.0,111440.0,2.13998769]
[1756334445564,1.57030266,111450.0,111440.0,2.13998769]
[1756334446272,1.66001516,111450.0,111440.0,2.13998769]
[1756334446774,1.57030266,111450.0,111440.0,2.13998769]
[1756334446969,1.57030266,111450.0,111440.0,1.88998769]
[1756334449765,1.66001526,111450.0,111440.0,1.88998769]
[1756334451075,1.57030266,111450.0,111440.0,1.88998769]
[1756334451981,1.66001526,111450.0,111440.0,1.88998769]
[1756334452773,1.57030266,111450.0,111440.0,1.88998769]
[1756334453071,1.57030266,111450.0,111440.0,1.70567036]
[1756334453269,1.5,111450.0,111440.0,1.70567036]
[1756334453575,1.52226,111450.0,111440.0,1.70531036]
[1756334453972,1.52226,111450.0,111440.0,1.70631036]
[1756334454574,1.52226,111450.0,111440.0,1.70731036]
[1756334455274,1.52226,111450.0,111440.0,1.70831036]
[1756334456079,1.52226,111450.0,111440.0,1.70931036]
[1756334456777,1.54975,111450.0,111440.0,1.70931036]
[1756334457080,1.58442,111450.0,111440.0,1.70931036]
[1756334457574,1.52226,111450.0,111440.0,1.70931036]
[1756334457774,1.52226,111450.0,111440.0,1.74197036]
[1756334457975,1.66128,111450.0,111440.0,1.76482036]
[1756334459274,1.7509926,111450.0,111440.0,1.76474036]
[1756334460179,1.7509926,111450.0,111440.0,0.6195307]
[1756334460376,2.06404226,111450.0,111440.0,0.68146733]
[1756334460579,2.06404226,111450.0,111440.0,0.64551733]
[1756334460879,0.81404226,111450.0,111440.0,1.40424733]
[1756334461381,0.5009926,111450.0,111440.0,1.59301793]
[1756334461581,0.5009926,111450.0,111440.0,1.58901793]
[1756334461782,0.5009926,111450.0,111440.0,1.59101793]
[1756334462478,0.5009926,111450.0,111440.0,1.59001793]
[1756334463477,0.53134102,111450.0,111440.0,1.59101793]
[1756334463877,0.5009926,111450.0,111440.0,1.59101793]
[1756334464274,0.5009926,111450.0,111440.0,1.59001793]
[1756334464275,0.53134979,111450.0,111440.0,1.59001793]
[1756334464475,0.53134979,111450.0,111440.0,1.90206759]
[1756334464780,0.5009926,111450.0,111440.0,1.90206759]
[1756334465380,0.76620175,111450.0,111440.0,1.82486395]
[1756334465779,0.76620175,111450.0,111440.0,0.99274395]
[1756334465982,0.76620175,111450.0,111440.0,1.77689335]
[1756334466884,0.76620175,111450.0,111440.0,0.94597335]
[1756334467084,0.76620175,111450.0,111440.0,1.77789335]
[1756334467283,0.76620175,111450.0,111440.0,1.77689335]
[1756334467482,0.76620175,111450.0,111440.0,1.77589335]
[1756334467784,0.76620175,111450.0,111440.0,1.86561405]
[1756334469791,0.76620175,111450.0,111440.0,1.77589335]
[1756334470489,0.76620175,111450.0,111440.0,1.54104733]
[1756334470683,0.76620175,111450.0,111440.0,1.77589335]
[1756334472295,0.76620175,111450.0,111440.0,1.86561405]
[1756334473890,0.76620175,111450.0,111440.0,1.77589335]
[1756334474192,0.53135573,111450.0,111440.0,1.77589335]
[1756334474396,0.53135573,111450.0,111440.0,2.01073937]
[1756334474597,0.76620175,111450.0,111440.0,2.01073937]
[1756334476898,0.53135573,111450.0,111440.0,2.10045997]
[1756334477099,0.3619726,111450.0,111440.0,2.10045997]
[1756334477301,0.3397126,111450.0,111440.0,2.10045997]
[1756334477501,0.12165534,111460.0,111450.0,0.16427]
[1756334477696,0.19729356,111460.0,111450.0,0.96411017]
[1756334477999,0.21953356,111460.0,111450.0,0.96411017]
[1756334478400,0.35371356,111460.0,111450.0,0.96411017]
[1756334479104,0.58855958,111460.0,111450.0,0.96411017]
[1756334479300,0.35371356,111460.0,111450.0,1.04231813]
[1756334482103,0.25913356,111460.0,111450.0,1.13203073]
[1756334482304,0.21953356,111460.0,111450.0,1.13203073]
[1756334483098,0.1891924,111460.0,111450.0,1.13203073]
[1756334483493,0.1669524,111460.0,111450.0,1.13203073]
[1756334483700,0.12165534,111460.0,111450.0,1.13203073]
[1756334484408,0.12165534,111460.0,111450.0,1.13403073]
[1756334485008,0.03195084,111460.0,111450.0,1.13403073]
[1756334486109,0.12165534,111460.0,111450.0,1.13403073]
[1756334487307,0.0897045,111460.0,111450.0,1.38403073]
[1756334487707,0.0897045,111460.0,111450.0,1.42961082]
[1756334488016,0.0897045,111460.0,111450.0,1.43161082]
[1756334488809,0.1119419,111470.0,111460.0,0.2484345]
[1756334489108,0.2095519,111470.0,111460.0,1.75360848]
[1756334489313,0.32338388,111470.0,111460.0,1.93788581]
[1756334490609,0.32338388,111470.0,111460.0,1.10660581]
[1756334490815,0.32338388,111470.0,111460.0,1.93784581]
[1756334494213,0.32338388,111470.0,111460.0,1.93884581]
[1756334497318,0.18423388,111470.0,111460.0,1.93884581]
[1756334497520,0.28184388,111470.0,111460.0,1.93884581]
[1756334497919,0.28184388,111470.0,111460.0,1.93784581]
[1756334498109,0.28184388,111470.0,111460.0,1.93884581]
[1756334499116,0.13374174,111480.0,111470.0,0.0896965]
[1756334499315,0.19792174,111480.0,111470.0,0.86407275]
[1756334499622,0.29553174,111480.0,111470.0,1.04839008]
[1756334499822,0.53022607,111480.0,111470.0,1.78973358]
[1756334500524,0.53122607,111480.0,111470.0,1.78973358]
[1756334502526,0.53122607,111480.0,111470.0,1.87943008]
[1756334502724,0.60126604,111480.0,111470.0,1.87943008]
[1756334503618,0.22742171,111480.0,111470.0,1.87943008]
[1756334503920,0.20468171,111480.0,111470.0,1.87943008]
[1756334504318,0.16073477,111480.0,111470.0,2.36412441]
[1756334504525,0.20516805,111480.0,111470.0,2.36412441]
[1756334504914,0.16073477,111480.0,111470.0,2.36412441]
[1756334505519,0.16073477,111480.0,111470.0,2.36396441]
[1756334506023,0.2066067,111480.0,111470.0,2.36396441]
[1756334506326,0.16073477,111480.0,111470.0,2.36396441]
[1756334506824,0.16073477,111480.0,111470.0,2.36496441]
[1756334507224,0.15973477,111480.0,111470.0,2.36496441]
[1756334509729,0.15973477,111480.0,111470.0,1.53408441]
[1756334510028,0.15973477,111480.0,111470.0,2.36484441]
[1756334510230,0.15973477,111480.0,111470.0,1.53408441]
[1756334510429,0.15973477,111480.0,111470.0,2.36480441]
[1756334510630,0.15973477,111480.0,111470.0,1.29939008]
[1756334510831,0.28919477,111480.0,111470.0,1.79037358]
[1756334511029,0.18247477,111480.0,111470.0,1.79037358]
[1756334511429,0.21138477,111480.0,111470.0,1.88007008]
[1756334511928,0.28008477,111480.0,111470.0,1.88007008]
[1756334512130,0.5563191,111480.0,111470.0,1.79033358]
[1756334513126,0.32162477,111480.0,111470.0,0.77537625]
[1756334513434,0.5563191,111480.0,111470.0,1.60601625]
[1756334513933,0.5563191,111480.0,111470.0,0.77437625]
[1756334514134,0.5573191,111480.0,111470.0,0.77437625]
[1756334514335,0.5573191,111480.0,111470.0,1.60497625]
[1756334514734,0.32262477,111480.0,111470.0,1.60497625]
[1756334514933,0.5573191,111480.0,111470.0,1.60497625]